bitfinex/quotes_SOLUSD_20241031
["timestamp","ask_amount","ask_price","bid_price","bid_amount"]
[1730377068140,10.16346517,174.94,174.89,10.16346517]
[1730377068341,10.16346517,174.95,174.9,10.16346517]
[1730377069258,10.16346517,174.95,174.9,15.88066517]
[1730377069440,0.12549,174.94,174.9,30.17446517]
[1730377070536,10.28895517,174.94,174.9,20.011]
[1730377073973,10.16346517,174.94,174.9,20.011]
[1730377074264,0.12549,174.93,174.9,20.011]
[1730377075560,10.16346517,174.93,174.9,14.2938]
[1730377075763,0.12549,174.92,174.9,14.2938]
[1730377076358,10.28895517,174.92,174.88,12.208]
[1730377080447,10.16346517,174.91,174.88,5.718]
[1730377080846,10.28895517,174.92,174.88,5.718]
[1730377081465,0.12549,174.92,174.88,10.16346517]
[1730377082574,0.12549,174.92,174.88,15.88126517]
[1730377082751,0.12549,174.92,174.88,30.45773877]
[1730377086649,0.12549,174.93,174.89,10.16346517]
[1730377087654,10.28895517,174.93,174.88,30.45773877]
[1730377089379,10.16346517,174.92,174.88,14.5764736]
[1730377089671,0.12549,174.9,174.88,0.2809736]
[1730377091571,0.12549,174.9,174.88,5.9990736]
[1730377092482,0.12549,174.91,174.88,5.9990736]
[1730377093669,26.19294517,174.89,174.88,7.36e-05]
[1730377093871,0.1,174.87,174.82,5.96338799]
[1730377094066,0.12549,174.85,174.82,5.96338799]
[1730377094393,0.25098,174.83,174.74,26.6906]
[1730377094558,0.12549,174.81,174.74,26.6906]
[1730377094758,10.16346517,174.78,174.74,26.6906]
[1730377097191,10.16346517,174.78,174.74,32.65014394]
[1730377098090,13.38546602,174.8,174.75,33.94034917]
[1730377098386,0.12549,174.8,174.76,10.16346517]
[1730377098779,10.16346517,174.81,174.76,10.16346517]
[1730377098961,0.12549,174.8,174.76,10.16346517]
[1730377099667,0.12549,174.8,174.76,20.0274]
[1730377100184,10.28895517,174.8,174.76,20.0274]
[1730377100361,10.16346517,174.79,174.76,20.0274]
[1730377100557,0.12549,174.78,174.76,20.0274]
[1730377101272,0.12549,174.79,174.76,14.3053]
[1730377103195,0.12549,174.79,174.76,20.0274]
[1730377103571,10.28895517,174.79,174.76,20.0274]
[1730377105796,10.28895517,174.79,174.76,14.3053]
[1730377106593,10.16346517,174.78,174.74,12.62572962]
[1730377106802,10.28895517,174.75,174.74,5.96422962]
[1730377106969,10.28895517,174.75,174.73,5.7228]
[1730377107473,10.16346517,174.74,174.73,5.7228]
[1730377107668,10.16346517,174.74,174.72,20.88958008]
[1730377108594,0.12549,174.74,174.72,20.88958008]
[1730377109100,10.16346517,174.75,174.72,20.88958008]
[1730377109992,10.16346517,174.74,174.72,20.88958008]
[1730377110473,10.28895517,174.73,174.72,0.85818008]
[1730377110677,0.12549,174.72,174.69,0.2171782]
[1730377111278,0.12549,174.73,174.69,0.2171782]
[1730377111495,0.12549,174.73,174.69,5.9413782]
[1730377111674,0.12549,174.73,174.61,21.2502782]
[1730377111864,10.16346517,174.7,174.64,10.16346517]
[1730377112266,0.25098,174.73,174.6,11.0223087]
[1730377112267,10.16346517,174.65,174.6,11.0223087]
[1730377112503,10.16346517,174.67,174.61,10.16346517]
[1730377112993,10.16346517,174.67,174.62,10.16346517]
[1730377113224,10.16346517,174.7,174.64,10.16346517]
[1730377113495,10.16346517,174.7,174.65,10.16346517]
[1730377114305,10.16346517,174.68,174.65,23.776884]
[1730377114465,10.16346517,174.69,174.66,14.3135]
[1730377114898,10.16346517,174.68,174.66,14.3135]
[1730377115695,10.16346517,174.67,174.66,14.3135]
[1730377116203,10.28895517,174.68,174.66,14.3135]
[1730377116793,10.16346517,174.7,174.66,14.3135]
[1730377117099,10.28895517,174.7,174.66,14.3135]
[1730377117286,10.16346517,174.69,174.66,14.3135]
[1730377117594,10.16346517,174.68,174.66,14.3135]
[1730377118700,0.12549,174.67,174.66,14.3135]
[1730377119004,10.28895517,174.67,174.66,14.3135]
[1730377119202,10.41444517,174.67,174.64,5.726]
[1730377119404,0.12549,174.67,174.64,5.726]
[1730377119589,0.12549,174.67,174.64,20.0411]
[1730377120103,0.12549,174.68,174.64,20.0411]
[1730377120316,10.28895517,174.68,174.64,20.0411]
[1730377120692,10.16346517,174.67,174.64,20.0411]
[1730377121400,10.28895517,174.68,174.64,20.0411]
[1730377121600,0.12549,174.68,174.64,30.20456517]
[1730377121794,0.12549,174.71,174.65,10.16346517]
[1730377121795,10.16346517,174.71,174.65,10.16346517]
[1730377121995,10.16346517,174.71,174.66,10.16346517]
[1730377122198,10.16346517,174.73,174.67,10.16346517]
[1730377122795,10.16346517,174.73,174.68,20.0365]
[1730377122997,10.16346517,174.74,174.68,30.19996517]
[1730377123203,10.16346517,174.75,174.68,48.6602]
[1730377123406,10.16346517,174.69,174.62,32.21706517]
[1730377123713,40.65386068,174.78,174.62,22.0536]
[1730377123714,10.16346517,174.66,174.62,22.0536]
[1730377124596,10.16346517,174.66,174.62,36.3704]
[1730377124794,10.16346517,174.66,174.63,23.776884]
[1730377125000,10.16346517,174.68,174.63,23.776884]
[1730377125220,10.16346517,174.69,174.63,33.94034917]
[1730377125526,10.16346517,174.7,174.65,10.16346517]
[1730377126216,10.16346517,174.69,174.65,23.776884]
[1730377126386,10.16346517,174.69,174.66,20.0389]
[1730377126585,10.16346517,174.68,174.66,20.0389]
[1730377126815,10.16346517,174.67,174.66,14.3135]
[1730377127001,10.16346517,174.68,174.63,5.726]
[1730377127203,0.12549,174.67,174.63,5.726]
[1730377127703,10.28895517,174.67,174.63,5.726]
[1730377128113,10.28895517,174.67,174.63,20.0419]
[1730377128309,10.16346517,174.66,174.63,20.0419]
[1730377129420,10.16346517,174.65,174.63,20.0419]
[1730377129712,10.16346517,174.66,174.63,20.0419]
[1730377130330,10.16346517,174.65,174.63,20.0419]
[1730377130503,15.93748118,174.65,174.63,20.0419]
[1730377131199,16.06297118,174.67,174.63,20.0419]
[1730377131421,15.93748118,174.67,174.63,20.0419]
[1730377132198,15.93748118,174.65,174.63,20.0419]
[1730377133641,15.93748118,174.67,174.63,20.0419]
[1730377134326,0.12549,174.67,174.63,20.0419]
[1730377134528,16.06297118,174.67,174.63,20.0419]
[1730377135239,15.93748118,174.68,174.63,20.0419]
[1730377135611,16.06297118,174.67,174.63,20.0419]
[1730377136921,0.12549,174.67,174.63,20.0419]
[1730377137331,16.06297118,174.67,174.63,20.0419]
[1730377137734,0.12549,174.67,174.63,20.0419]
[1730377138437,15.93748118,174.68,174.63,20.0419]
[1730377138607,15.93748118,174.7,174.65,15.93748118]
[1730377139323,15.93748118,174.7,174.64,39.71436518]
[1730377139719,15.93748118,174.7,174.65,20.04]
[1730377141435,15.93748118,174.69,174.65,20.04]
[1730377141743,15.93748118,174.68,174.65,20.04]
[1730377142525,15.93748118,174.69,174.65,20.04]
[1730377142733,15.93748118,174.68,174.65,20.04]
[1730377142929,15.93748118,174.67,174.65,20.04]
[1730377143136,5.97488,174.71,174.65,14.3143]
[1730377143137,15.93748118,174.66,174.65,14.3143]
[1730377143325,15.93748118,174.66,174.63,5.7261]
[1730377143533,15.93748118,174.65,174.63,5.7261]
[1730377143717,15.93748118,174.65,174.61,34.7716]
[1730377143917,15.93748118,174.65,174.63,14.3159]
[1730377144346,15.93748118,174.66,174.63,14.3159]
[1730377144753,0.22549,174.6,174.46,15.93748118]
[1730377144945,0.12549,174.6,174.44,0.2]
[1730377145242,0.35098,174.6,174.44,0.1]
[1730377145546,16.06297118,174.53,174.46,15.93748118]
[1730377145949,16.06297118,174.53,174.47,5.7315]
[1730377146923,16.06297118,174.53,174.45,5.732]
[1730377147142,16.06297118,174.53,174.46,21.66928118]
[1730377147627,16.18846118,174.53,174.44,36.00088118]
[1730377148245,16.18846118,174.53,174.45,5.732]
[1730377149350,16.18846118,174.53,174.4,0.1]
[1730377149351,0.22549,174.45,174.35,0.4570236]
[1730377149527,15.93748118,174.38,174.35,0.4570236]
[1730377150228,5.85799,174.45,174.35,6.1923236]
[1730377150423,15.93748118,174.39,174.35,6.1923236]
[1730377150732,5.85799,174.45,174.33,6.5427]
[1730377150733,15.93748118,174.38,174.33,7.7358236]
[1730377150936,15.93748118,174.39,174.33,7.7358236]
[1730377151129,15.93748118,174.38,174.33,7.7358236]
[1730377151738,15.93748118,174.38,174.34,23.776884]
[1730377151939,15.93748118,174.39,174.34,23.776884]
[1730377152137,15.93748118,174.38,174.34,23.776884]
[1730377152535,15.93748118,174.37,174.34,23.776884]
[1730377152727,15.93748118,174.37,174.33,7.7358236]
[1730377153331,15.93748118,174.34,174.33,5.7361]
[1730377153635,15.93748118,174.34,174.31,20.0784]
[1730377154028,15.93748118,174.34,174.31,14.3418]
[1730377154231,15.93748118,174.35,174.31,14.3418]
[1730377154649,15.93748118,174.35,174.31,20.0787]
[1730377155353,15.93748118,174.34,174.31,14.3418]
[1730377155550,15.93748118,174.33,174.31,14.3418]
[1730377156049,5.7346,174.38,174.3,6.1371]
[1730377156050,15.93748118,174.32,174.3,0.4]
[1730377156247,5.7346,174.38,174.3,0.4]
[1730377156248,15.93748118,174.31,174.3,0.4]
[1730377156752,16.06297118,174.31,174.3,0.4]
[1730377157951,15.93748118,174.32,174.3,0.4]
[1730377158847,15.93748118,174.33,174.3,0.4]
[1730377159354,15.93748118,174.37,174.32,15.93748118]
[1730377159527,14.4303,174.46,174.33,15.93748118]
[1730377159528,15.93748118,174.38,174.33,15.93748118]
[1730377159726,15.93748118,174.4,174.34,39.71436518]
[1730377160440,15.93748118,174.39,174.34,39.71436518]
[1730377160747,15.93748118,174.39,174.35,29.512384]
[1730377160956,15.93748118,174.39,174.35,43.851284]
[1730377161139,15.93748118,174.37,174.35,59.396884]
[1730377163745,15.93748118,174.39,174.35,59.396884]
[1730377163947,15.93748118,174.38,174.35,59.396884]
[1730377164335,5.7333,174.42,174.35,59.396884]
[1730377164336,15.93748118,174.37,174.35,59.396884]
[1730377164554,15.93748118,174.38,174.35,59.396884]
[1730377164929,15.93748118,174.38,174.35,35.62]
[1730377165662,15.93748118,174.36,174.33,29.513084]
[1730377167643,15.93748118,174.36,174.33,5.7362]
[1730377168043,15.93748118,174.34,174.31,20.0784]
[1730377169260,16.06297118,174.35,174.31,20.0784]
[1730377169450,0.12549,174.35,174.31,36.01588118]
[1730377169667,15.93748118,174.37,174.32,39.71436518]
[1730377169847,15.93748118,174.37,174.33,20.0768]
[1730377171362,15.93748118,174.39,174.34,39.71436518]
[1730377171963,15.93748118,174.38,174.34,23.776884]
[1730377172669,15.93748118,174.38,174.35,5.7355]
[1730377172864,15.93748118,174.36,174.35,5.7355]
[1730377173240,15.93748118,174.36,174.33,20.0765]
[1730377173641,15.93748118,174.34,174.33,14.3406]
[1730377173947,15.93748118,174.34,174.3,16.8374]
[1730377174137,0.25098,174.4,174.3,22.5745]
[1730377174138,15.93748118,174.33,174.3,22.5745]
[1730377174349,15.93748118,174.33,174.3,36.9175]
[1730377175871,15.93748118,174.32,174.3,31.1804]
[1730377176054,15.93748118,174.31,174.3,31.1804]
[1730377176869,15.93748118,174.31,174.3,36.9176]
[1730377178172,15.93748118,174.33,174.3,36.9176]
[1730377178472,15.93748118,174.32,174.3,36.9176]
[1730377179966,15.93748118,174.33,174.3,36.9176]
[1730377180272,15.93748118,174.31,174.3,20.4802]
[1730377180653,15.93748118,174.31,174.3,14.743]
[1730377181750,15.93748118,174.32,174.3,20.4802]
[1730377183061,15.93748118,174.35,174.3,20.4802]
[1730377183565,15.93748118,174.34,174.3,20.4802]
[1730377183766,15.93748118,174.33,174.3,20.4802]
[1730377184074,15.93748118,174.35,174.3,36.41768118]
[1730377184458,15.93748118,174.35,174.31,23.776884]
[1730377184663,15.93748118,174.36,174.31,39.71436518]
[1730377184874,15.93748118,174.36,174.31,23.776884]
[1730377185079,15.93748118,174.37,174.33,23.776884]
[1730377185259,15.93748118,174.36,174.33,23.776884]
[1730377186048,15.93748118,174.36,174.32,23.776884]
[1730377186582,15.93748118,174.37,174.33,20.0768]
[1730377186764,15.93748118,174.38,174.34,23.776884]
[1730377187584,15.93748118,174.39,174.35,15.9323]
[1730377188572,15.93748118,174.39,174.36,5.7352]
[1730377188776,15.93748118,174.38,174.36,5.7352]
[1730377189584,15.93748118,174.37,174.35,36.86586901]
[1730377189767,15.93748118,174.36,174.35,20.93356901]
[1730377190786,15.93748118,174.36,174.35,0.85996901]
[1730377190952,16.06297118,174.36,174.35,0.85996901]
[1730377191373,21.79817118,174.36,174.35,0.85996901]
[1730377196972,16.06297118,174.36,174.35,0.85996901]
[1730377197992,15.93748118,174.39,174.35,20.93436901]
[1730377198387,15.93748118,174.38,174.35,20.93436901]
[1730377200275,15.93748118,174.37,174.35,20.93436901]
[1730377200668,15.93748118,174.36,174.35,20.93436901]
[1730377202072,15.93748118,174.36,174.35,0.85996901]
[1730377202073,16.06297118,174.36,174.35,0.85996901]
[1730377202273,15.93748118,174.36,174.35,6.59546901]
[1730377205187,15.93748118,174.36,174.35,0.85996901]
[1730377205188,16.06297118,174.36,174.35,0.85996901]
[1730377205391,21.79817118,174.36,174.35,0.85996901]
[1730377209601,0.12549,174.35,174.3,0.4]
[1730377209896,15.93748118,174.32,174.3,6.1369]
[1730377210387,15.93748118,174.31,174.3,6.1369]
[1730377212224,16.06297118,174.31,174.3,0.4]
[1730377212575,15.93748118,174.32,174.3,20.4802]
[1730377212913,15.93748118,174.33,174.3,20.4802]
[1730377213075,15.93748118,174.32,174.3,20.4802]
[1730377213986,16.06297118,174.31,174.3,14.743]
[1730377214307,16.06297118,174.31,174.3,0.4]
[1730377215210,23.60406118,174.31,174.3,0.4]
[1730377215977,21.92536118,174.31,174.3,0.4]
[1730377225511,15.93748118,174.32,174.3,0.4]
[1730377225692,15.93748118,174.33,174.3,6.137]
[1730377226009,16.06297118,174.31,174.3,0.4]
[1730377226808,16.18846118,174.31,174.3,0.4]
[1730377227013,21.92536118,174.31,174.3,0.4]
[1730377228396,15.93748118,174.32,174.3,0.4]
[1730377228603,10.23988931,174.32,174.3,0.4]
[1730377228815,10.23988931,174.31,174.3,0.4]
[1730377229014,10.23988931,174.32,174.3,0.4]
[1730377229512,10.23988931,174.31,174.3,0.4]
[1730377230184,10.36537931,174.31,174.3,0.4]
[1730377230595,0.12549,174.31,174.3,0.4]
[1730377230799,0.12549,174.31,174.3,6.1372]
[1730377231316,16.00150562,174.36,174.3,22.13870562]
[1730377231519,16.00150562,174.37,174.32,16.00150562]
[1730377231811,5.7333,174.42,174.33,16.00150562]
[1730377232017,16.00150562,174.37,174.32,16.00150562]
[1730377232383,16.00150562,174.37,174.33,14.3406]
[1730377233012,0.12549,174.36,174.33,14.3406]
[1730377233718,0.12549,174.36,174.33,30.34210562]
[1730377233920,0.12549,174.36,174.34,16.00150562]
[1730377234504,0.12549,174.36,174.34,20.0756]
[1730377235217,0.12549,174.39,174.35,16.00150562]
[1730377235421,0.12549,174.4,174.36,16.00150562]
[1730377235591,5.95435253,174.46,174.34,20.0756]
[1730377235592,16.00150562,174.42,174.37,16.00150562]
[1730377236017,16.00150562,174.41,174.36,16.00150562]
[1730377236218,16.00150562,174.41,174.35,16.00150562]
[1730377236417,16.00150562,174.41,174.36,20.0733]
[1730377236800,16.00150562,174.39,174.36,20.0733]
[1730377236998,16.12699562,174.38,174.32,30.34280562]
[1730377237310,16.12699562,174.38,174.33,16.00150562]
[1730377237700,0.12549,174.38,174.34,16.00150562]
[1730377238223,16.12699562,174.38,174.34,5.7356]
[1730377238599,0.12549,174.38,174.34,36.07680562]
[1730377238800,0.12549,174.39,174.34,36.07680562]
[1730377239020,0.12549,174.41,174.37,16.00150562]
[1730377239223,16.00150562,174.42,174.37,16.00150562]
[1730377239400,16.00150562,174.43,174.38,31.66070562]
[1730377240024,16.00150562,174.39,174.34,51.29690562]
[1730377240589,0.12549,174.38,174.34,35.2954]
[1730377241016,0.12549,174.38,174.34,29.5598]
[1730377241412,16.00150562,174.37,174.34,29.5598]
[1730377241616,0.12549,174.38,174.34,14.3397]
[1730377241617,0.12549,174.35,174.34,14.3397]
[1730377242241,0.12549,174.36,174.32,16.00150562]
[1730377242420,0.12549,174.36,174.33,16.00150562]
[1730377242623,0.12549,174.37,174.33,16.00150562]
[1730377243113,16.00150562,174.42,174.36,16.00150562]
[1730377243426,16.00150562,174.42,174.37,16.00150562]
[1730377243919,7.7393,174.49,174.37,16.00150562]
[1730377243920,16.00150562,174.43,174.38,39.942884]
[1730377244094,16.00150562,174.44,174.39,16.00150562]
[1730377244292,16.00150562,174.44,174.4,5.7339]
[1730377245426,0.12549,174.43,174.4,5.7339]
[1730377246305,0.12549,174.44,174.4,20.0687]
[1730377246509,0.12549,174.44,174.4,36.07020562]
[1730377246899,16.00150562,174.44,174.4,20.0687]
[1730377247093,16.12699562,174.45,174.4,20.0687]
[1730377247723,16.00150562,174.42,174.4,14.3348]
[1730377248021,16.00150562,174.43,174.4,14.3348]
[1730377248203,16.12699562,174.42,174.38,21.9005]
[1730377248399,0.12549,174.42,174.38,52.23850562]
[1730377248719,0.12549,174.43,174.39,16.00150562]
[1730377249023,16.00150562,174.42,174.38,36.237]
[1730377249223,0.12549,174.41,174.38,36.237]
[1730377249744,16.12699562,174.41,174.38,36.237]
[1730377249898,0.12549,174.41,174.38,36.237]
[1730377250817,0.12549,174.42,174.38,36.237]
[1730377252708,0.12549,174.42,174.38,52.23850562]
[1730377254039,0.12549,174.42,174.38,36.237]
[1730377254209,16.12699562,174.42,174.38,36.237]
[1730377254531,10.35316215,174.42,174.38,36.237]
[1730377255739,10.22767215,174.44,174.39,10.22767215]
[1730377256033,10.35316215,174.45,174.39,10.22767215]
[1730377256326,0.12549,174.43,174.39,10.22767215]
[1730377256535,0.12549,174.43,174.38,36.237]
[1730377256536,10.35316215,174.43,174.38,46.46467215]
[1730377256907,10.35316215,174.43,174.38,36.237]
[1730377256908,0.12549,174.41,174.38,36.237]
[1730377257109,10.35316215,174.41,174.38,36.237]
[1730377257418,10.22767215,174.41,174.38,36.237]
[1730377258233,10.22767215,174.42,174.38,36.237]
[1730377259538,10.22767215,174.43,174.38,46.46467215]
[1730377259742,0.12549,174.42,174.38,46.46467215]
[1730377261428,10.22767215,174.41,174.38,36.237]
[1730377262728,0.12549,174.4,174.38,16.166]
[1730377262912,0.12549,174.4,174.36,5.735]
[1730377263246,0.12549,174.4,174.36,30.30077215]
[1730377264541,10.22767215,174.41,174.36,30.30077215]
[1730377265135,10.22767215,174.38,174.34,6.59587064]
[1730377265512,10.22767215,174.37,174.34,6.59587064]
[1730377266439,10.22767215,174.37,174.34,15.19977064]
[1730377267421,10.22767215,174.37,174.34,20.93567064]
[1730377268242,10.22767215,174.38,174.34,20.93567064]
[1730377269145,10.22767215,174.37,174.34,20.93567064]
[1730377271248,10.22767215,174.38,174.34,20.93567064]
[1730377271620,15.96237215,174.38,174.34,20.93567064]
[1730377272723,10.22767215,174.37,174.34,20.93567064]
[1730377273222,10.22767215,174.37,174.34,15.19977064]
[1730377273840,10.22767215,174.36,174.34,15.19977064]
[1730377274442,10.35316215,174.35,174.34,0.86007064]
[1730377275550,16.08866215,174.35,174.34,0.86007064]
[1730377275952,10.35316215,174.35,174.34,0.86007064]
[1730377276666,16.08866215,174.35,174.34,0.86007064]
[1730377276866,10.35316215,174.35,174.34,0.86007064]
[1730377277271,0.12549,174.34,174.3,15.9678]
[1730377277478,10.22767215,174.32,174.3,0.4]
[1730377277777,10.22767215,174.31,174.3,0.4]
[1730377278862,10.35316215,174.31,174.3,0.4]
[1730377279757,16.09006215,174.31,174.3,0.4]
[1730377280158,10.35316215,174.31,174.3,0.4]
[1730377280858,10.22767215,174.31,174.3,0.4]
[1730377281063,10.22767215,174.31,174.3,6.1372]
[1730377281257,10.22767215,174.31,174.3,0.4]
[1730377281681,10.22767215,174.34,174.3,20.4802]
[1730377282316,10.22767215,174.33,174.3,20.4802]
[1730377282654,10.22767215,174.35,174.3,20.4802]
[1730377282857,10.22767215,174.39,174.35,20.0744]
[1730377283157,10.22767215,174.4,174.36,23.776884]
[1730377284094,10.22767215,174.4,174.37,20.0722]
[1730377285896,10.22767215,174.43,174.38,10.22767215]
[1730377286400,10.22767215,174.42,174.38,23.776884]
[1730377287595,10.22767215,174.42,174.4,16.5848]
[1730377288911,10.22767215,174.41,174.35,26.51017215]
[1730377289074,10.22767215,174.39,174.36,49.511984]
[1730377289972,10.22767215,174.39,174.36,63.850084]
[1730377291590,10.22767215,174.4,174.36,63.850084]
[1730377292571,10.22767215,174.41,174.36,74.07775615]
[1730377292802,10.22767215,174.42,174.36,74.07775615]
[1730377293005,10.22767215,174.41,174.36,74.07775615]
[1730377293377,10.22767215,174.42,174.36,74.07775615]
[1730377293977,5.733,174.43,174.36,74.07775615]
[1730377293978,10.22767215,174.41,174.36,74.07775615]
[1730377294381,5.733,174.43,174.36,74.07775615]
[1730377294382,10.22767215,174.43,174.38,10.22767215]
[1730377294599,10.22767215,174.42,174.37,10.22767215]
[1730377294895,10.22767215,174.42,174.38,23.776884]
[1730377295099,10.22767215,174.39,174.35,16.2825]
[1730377295393,10.22767215,174.38,174.35,22.0179]
[1730377295902,10.22767215,174.38,174.35,16.2825]
[1730377296208,10.22767215,174.37,174.33,20.0766]
[1730377296703,10.22767215,174.36,174.31,22.26677215]
[1730377297102,10.22767215,174.37,174.32,10.22767215]
[1730377297887,0.12549,174.4,174.31,12.0391]
[1730377297888,10.22767215,174.34,174.31,14.3422]
[1730377298180,10.22767215,174.33,174.31,20.079]
[1730377299208,10.22767215,174.34,174.31,20.079]
[1730377299587,10.22767215,174.33,174.31,20.079]
[1730377301698,10.22767215,174.33,174.31,19.579]
[1730377302008,10.22767215,174.34,174.31,19.579]
[1730377304913,10.22767215,174.33,174.31,19.579]
[1730377310412,10.22767215,174.33,174.31,13.8422]
[1730377310714,10.22767215,174.32,174.3,0.4]
[1730377310895,10.22767215,174.31,174.3,0.4]
[1730377313225,15.96457215,174.31,174.3,0.4]
[1730377317364,10.22767215,174.31,174.3,0.4]
[1730377319344,15.96457215,174.31,174.3,0.4]
[1730377320426,10.22767215,174.31,174.3,0.4]
[1730377324940,10.22767215,174.33,174.3,20.4802]
[1730377325647,10.22767215,174.31,174.3,0.4]
[1730377326115,10.22767215,174.32,174.3,0.4]
[1730377326321,10.22767215,174.33,174.3,6.137]
[1730377327245,10.22767215,174.38,174.33,23.902374]
[1730377327414,10.22767215,174.39,174.35,23.902374]
[1730377327612,10.22767215,174.39,174.34,30.30327215]
[1730377327613,10.22767215,174.39,174.34,20.0756]
[1730377327844,10.22767215,174.37,174.34,20.0756]
[1730377328246,10.22767215,174.38,174.34,20.0756]
[1730377328628,10.22767215,174.38,174.35,23.776884]
[1730377328951,10.22767215,174.39,174.36,5.7352]
[1730377329256,10.22767215,174.4,174.36,20.0733]
[1730377330728,10.22767215,174.39,174.36,20.0733]
[1730377332647,10.22767215,174.37,174.36,20.0733]
[1730377332963,10.22767215,174.38,174.36,20.0733]
[1730377334454,10.22767215,174.39,174.36,20.0733]
[1730377334757,10.22767215,174.39,174.37,0.12549]
[1730377334956,10.22767215,174.4,174.37,23.902374]
[1730377335654,5.7326,174.44,174.37,23.902374]
[1730377335655,10.22767215,174.39,174.37,23.902374]
[1730377335955,10.22767215,174.38,174.36,20.0733]
[1730377336127,10.22767215,174.37,174.36,43.850184]
[1730377336636,10.22767215,174.38,174.36,43.850184]
[1730377336841,10.22767215,174.38,174.37,23.776884]
[1730377337933,10.22767215,174.39,174.37,23.776884]
[1730377339260,10.22767215,174.38,174.37,23.776884]
[1730377340545,10.22767215,174.39,174.37,23.776884]
[1730377340748,10.22767215,174.38,174.37,23.776884]
[1730377341429,10.22767215,174.38,174.35,5.7353]
[1730377341628,40.9106886,174.42,174.36,23.776884]
[1730377341830,10.22767215,174.37,174.36,23.776884]
[1730377343047,10.22767215,174.38,174.36,23.776884]
[1730377343359,10.22767215,174.39,174.37,0.12549]
[1730377343533,10.22767215,174.4,174.37,0.12549]
[1730377344556,10.22767215,174.4,174.37,5.86019]
[1730377344730,10.22767215,174.4,174.38,23.776884]
[1730377345356,10.22767215,174.39,174.38,23.902374]
[1730377346363,10.22767215,174.4,174.38,29.636974]
[1730377346744,10.22767215,174.39,174.38,29.636974]
[1730377347147,10.22767215,174.39,174.38,23.902374]
[1730377347441,10.22767215,174.39,174.34,14.3393]
[1730377347659,10.22767215,174.38,174.34,14.3393]
[1730377348129,10.22767215,174.36,174.34,14.3393]
[1730377348459,10.22767215,174.35,174.34,14.46479]
[1730377349158,10.22767215,174.36,174.34,14.46479]
[1730377349363,10.22767215,174.36,174.35,23.776884]
[1730377350356,10.22767215,174.37,174.35,23.776884]
[1730377353251,10.22767215,174.36,174.35,23.776884]
[1730377355148,10.22767215,174.37,174.35,23.776884]
[1730377358445,10.22767215,174.4,174.36,20.19879]
[1730377358641,10.22767215,174.4,174.37,23.776884]
[1730377358844,10.22767215,174.38,174.32,16.0052]
[1730377359041,10.22767215,174.35,174.33,23.776884]
[1730377359269,10.22767215,174.36,174.34,0.12549]
[1730377359981,10.22767215,174.36,174.34,5.86119]
[1730377360284,10.22767215,174.35,174.34,5.86119]
[1730377360564,10.22767215,174.35,174.34,29.638074]
[1730377360956,10.22767215,174.35,174.33,23.776884]
[1730377361156,10.22767215,174.34,174.33,23.776884]
[1730377362058,10.22767215,174.34,174.32,14.3414]
[1730377362945,10.22767215,174.34,174.33,0.12549]
[1730377363147,10.22767215,174.35,174.33,23.902374]
[1730377363974,10.22767215,174.37,174.33,23.902374]
[1730377364270,10.22767215,174.37,174.35,23.902374]
[1730377364862,10.22767215,174.36,174.35,23.902374]
[1730377366571,10.22767215,174.37,174.35,29.637874]
[1730377368578,10.22767215,174.36,174.35,29.637874]
[1730377372878,40.9106886,174.42,174.35,43.976774]
[1730377372879,10.22767215,174.37,174.35,43.976774]
[1730377373061,10.22767215,174.4,174.35,54.20444615]
[1730377374779,10.22767215,174.39,174.35,54.20444615]
[1730377376570,10.22767215,174.39,174.35,43.976774]
[1730377377960,10.22767215,174.39,174.35,54.20444615]
[1730377378777,10.22767215,174.4,174.35,54.20444615]
[1730377379283,10.22767215,174.4,174.37,0.12549]
[1730377379588,10.22767215,174.4,174.37,23.902374]
[1730377379769,10.22767215,174.4,174.39,0.12549]
[1730377379970,10.22767215,174.4,174.39,23.902374]
[1730377383283,10.22767215,174.42,174.39,43.972174]
[1730377383469,10.22767215,174.41,174.39,43.972174]
[1730377383661,10.22767215,174.4,174.39,38.237974]
[1730377386294,10.22767215,174.41,174.39,38.237974]
[1730377387193,10.22767215,174.42,174.39,43.972174]
[1730377387406,10.22767215,174.43,174.39,43.972174]
[1730377387694,10.22767215,174.44,174.4,10.35316215]
[1730377387866,10.22767215,174.45,174.41,23.902374]
[1730377388566,10.22767215,174.46,174.41,34.13004615]